[Event "8th Montevideo Open 2025"]
[Site "Montevideo"]
[Date "2025.02.07"]
[Round "7.9"]
[White "Milat, Marcel"]
[Black "Martello, Benjamin"]
[Result "1-0"]
[Annotator "TA"]
[ECO "D75"]
[WhiteElo "2190"]
[BlackElo "1968"]
[PlyCount "61"]
[EventDate "2025.02.01"]
[EventType "swiss"]
[EventCountry "URU"]
[SourceTitle "playchess.com"]
[Source "ChessBase"]
[SourceQuality "1"]
[TimeControl "5400+30"]

{[%evp 18,61,18,15,54,-5,53,62,59,62,61,59,70,70,108,14,130,126,136,135,173,171,176,183,185,200,266,265,304,292,374,375,375,357,375,374,369,359,359,329,387,385,385,385,368,375]} 1. Nf3 {[%emt 0:03:36]} Nf6 {[%emt 0:00:05]} 2. c4 {[%emt 0:00:07]} c5 {[%emt 0:00:04]} 3. g3 {[%emt 0:00:15]} g6 {[%emt 0:00:04]} 4. Bg2 {[%emt 0:00:35]} Bg7 {[%emt 0:00:02]} 5. Nc3 {[%emt 0:00:16]} O-O {[%emt 0:00:14]} 6. O-O {[%emt 0:00:27]} d5 {[%emt 0:00:46]} 7. cxd5 {[%emt 0:11:06]} Nxd5 {[%emt 0:01:12]} 8. d4 {[%emt 0:01:45]} Nc6 {[%emt 0:06:41]} 9. Nxd5 {[%emt 0:04:56]} Qxd5 {[%emt 0:00:07]} 10. Be3 $1 {[%emt 0:00:05]} Rd8 {[%emt 0:10:26] D75: Fianchetto Grünfeld: Main Line with 7...c5.} (10... Bxd4 11. Nxd4 Qh5 12. Nxc6 bxc6 13. Bxc6 $18) 11. dxc5 {[%emt 0:04:05]} ({White should play} 11. Qa4 $1 $14) 11... Bxb2 $146 {[%emt 0:03:51]} (11... Qc4 $11 12. Qb3 Qxb3 13. axb3 a5) (11... Qc4 12. Nd2 Qa6 13. Re1 Bxb2 14. Rb1 Bd4 15. Bxd4 Rxd4 16. Rb2 Be6 17. Qc1 Rad8 18. h4 {1-0 Kovalenko,I (2637)-Kantans,T (2449) Baltic zt Vilnius 2014 (11)}) 12. Qxd5 $14 {[%emt 0:02:24]} Rxd5 {[%emt 0:00:31] White is slightly better.} 13. Rab1 {[%emt 0:00:02]} Bf6 {[%emt 0:06:57]} 14. Ne1 {[%emt 0:01:12]} Rd8 {[%emt 0:03:09]} 15. Nd3 {[%emt 0:00:15]} Bg4 {[%emt 0:12:41]} 16. Nf4 {[%emt 0:14:56]} (16. Rxb7 $16 Bxe2 17. Re1) 16... Rd7 {[%emt 0:09:29] [#] Black is now going downhill.} (16... Rab8 $11 {remains equal.}) 17. Rxb7 $3 $16 {[%emt 0:08:19][%mdl 512]} Rxb7 {[%emt 0:01:21]} (17... Rc8 18. Rfb1) 18. Bxc6 {[%emt 0:00:09]} Rab8 {[%emt 0:01:05]} 19. Bxb7 {[%emt 0:00:09]} Rxb7 {[%emt 0:00:02]} 20. Rc1 {[%emt 0:00:19]} Rb2 {[%emt 0:04:59]} 21. c6 {[%emt 0:25:37]} Rxa2 {[%emt 0:01:00][%cal Og8f8]} 22. c7 {[%emt 0:00:05]} Bc8 {[%emt 0:00:05]} 23. Rd1 {[%emt 0:01:35] Rd8+ would now be deadly.} Ra1 {[%emt 0:06:07]} 24. Rxa1 {[%emt 0:00:10]} Bxa1 $18 {[%emt 0:00:02][%mdl 4096] Endgame [#] KBB-KBN} 25. Nd5 $1 {[%emt 0:00:48]} (25. Bxa7 e6 $14) 25... Kf8 {[%emt 0:06:56]} 26. Bxa7 {[%emt 0:00:57]} Ke8 {[%emt 0:02:07]} 27. Nb6 {[%emt 0:00:13]} Bb7 {[%emt 0:00:14]} 28. e3 {[%emt 0:01:01]} (28. c8=R+ Bxc8 29. Nxc8 Kd8) ({Weaker is} 28. c8=N Kd8 $11) ({Don't do} 28. c8=B Bxc8 29. Nxc8 Kd8 $18) 28... e6 {[%emt 0:02:50]} 29. c8=Q+ {[%emt 0:19:36] White is winning.} Bxc8 {[%emt 0:00:09]} 30. Nxc8 {[%emt 0:00:00]} Kd7 {[%emt 0:00:14]} 31. Nb6+ {[%emt 0:00:00] Weighted Error Value: White=0.12 (very precise) /Black=0.38  Mistake:       	White=2     	Black=2      Inaccurate:     	---       	Black=2      OK:         	White=10    	Black=6      Best:        	White=4     	Black=1      Strong:       	White=1     	---} 1-0

[Event "8th Montevideo Open 2025"]
[Site "Montevideo"]
[Date "2025.02.07"]
[Round "7.10"]
[White "Dominguez, Facundo"]
[Black "Varela, Mateo"]
[Result "1/2-1/2"]
[Annotator "TA"]
[ECO "B30"]
[WhiteElo "2159"]
[BlackElo "1955"]
[PlyCount "253"]
[EventDate "2025.02.01"]
[EventType "swiss"]
[EventCountry "URU"]
[SourceTitle "playchess.com"]
[Source "ChessBase"]
[SourceQuality "1"]
[TimeControl "5400+30"]

{[%evp 16,253,27,25,21,34,33,41,41,42,33,29,39,0,8,-22,28,29,37,62,82,72,132,33,43,47,53,25,67,50,87,92,72,73,85,82,95,95,86,82,88,73,126,125,131,100,111,118,111,110,191,191,197,187,199,192,225,210,206,209,208,195,296,296,330,338,325,316,302,305,337,360,351,325,549,361,360,299,958,179,277,275,558,356,290,110,107,117,106,97,75,75,75,75,72,69,69,69,69,58,58,58,58,58,58,0,58,52,58,58,58,58,58,58,58,58,58,52,54,54,49,38,58,58,58,58,58,58,58,56,55,53,59,59,59,59,59,58,59,59,59,58,59,58,58,58,58,58,58,58,58,58,58,58,58,58,64,58,72,72,72,72,72,72,72,72,72,72,72,72,72,72,29978,29979,29997,77,29977,29978,29978,77,77,77,77,77,29983,77,77,77,77,77,77,77,77,77,29987,0,29964,72,73,0,77,0,29978,0,77,64,61,53,53,53,53,0,0,0,0,0,0,0,0,0,0,0,0,0,0,0,0,0,0,0,8,0,0,0,0,0,8,0,0,8]} 1. e4 {[%emt 0:07:16]} c5 {[%emt 0:00:04]} 2. Nf3 {[%emt 0:00:13]} Nc6 {[%emt 0:00:05]} 3. Bb5 {[%emt 0:00:14]} e6 {[%emt 0:00:30]} 4. O-O {[%emt 0:00:10]} Nge7 {[%emt 0:00:05][%cal Bg8e7,Be7d5,Bd5b4][%mdl 32]} 5. Re1 {[%emt 0:00:09]} a6 {[%emt 0:00:44]} 6. Bf1 {[%emt 0:00:06]} d5 {[%emt 0:00:27]} 7. exd5 {[%emt 0:00:06]} Nxd5 {[%emt 0:00:05]} 8. d4 {[%emt 0:00:40]} cxd4 {[%emt 0:00:06]} 9. Nxd4 {[%emt 0:00:15]} Ndb4 {[%emt 0:00:24] B30: Sicilian: 2...Nc6 3 Bb5, lines without ...g6.} 10. Nxc6 {[%emt 0:00:45]} Qxd1 {[%emt 0:00:13]} 11. Rxd1 {[%emt 0:00:03][%csl Gc6][%cal Rd1d8]} bxc6 {[%emt 0:00:10] White is slightly better.} 12. Na3 {[%emt 0:01:42]} a5 {[%emt 0:00:04]} 13. c3 {[%emt 0:13:37]} Nd5 {[%emt 0:00:07]} 14. Nc4 {[%emt 0:00:29]} f6 {[%emt 0:10:19] Dodges Ne5} 15. Nd2 $146 {[%emt 0:11:22]} (15. a4 Ba6 16. Be3 Bxc4 17. Bxc4 {½-½ Xiong,J (2693)-Kamsky,G (2655) Aimchess Rapid Div 2 W 2023 (2.2)}) 15... Bc5 {[%emt 0:04:35]} (15... e5 $142) 16. Ne4 $11 {[%emt 0:04:39]} Bb6 {[%emt 0:05:08]} 17. c4 {[%emt 0:00:57]} Nc7 {[%emt 0:03:33]} 18. b3 {[%emt 0:12:45]} e5 {[%emt 0:06:09]} (18... Na6 $142) 19. Nd6+ {[%emt 0:09:53]} (19. c5 $16 Ba7 20. Rd6) 19... Ke7 $14 {[%emt 0:05:41]} 20. Ba3 {[%emt 0:00:36] White attacks} (20. Nxc8+ Raxc8 21. Ba3+ c5 22. Bd3) 20... c5 {[%emt 0:04:01]} 21. Be2 {[%emt 0:03:21][%cal Of2f4]} (21. Nxc8+ {simplifies} Raxc8 22. Bd3 g6 23. Be4) 21... Ne6 {[%emt 0:07:58]} 22. Bg4 {[%emt 0:01:28][%cal Of2f4] White has more active pieces.} g6 {[%emt 0:11:49]} 23. Bxe6 {[%emt 0:02:11]} Bxe6 {[%emt 0:01:21]} 24. Ne4 {[%emt 0:00:13][%cal Od1d6]} Rhc8 {[%emt 0:14:43]} 25. Rd6 {[%emt 0:01:12][%cal Bd1d6,Bd6b6,Bb6b5][%mdl 32]} Bf5 {[%emt 0:04:21]} 26. Rxb6 {[%emt 0:00:17]} (26. Nxf6 $2 Kxd6 27. Nd5 Bd8 $19) (26. Rxf6 Ba7 (26... Bxe4 $2 27. Rxb6 a4 28. h3 $18) 27. Rxf5 gxf5 $11) 26... Bxe4 {[%emt 0:00:08]} 27. f3 {[%emt 0:01:50]} Bc2 {[%emt 0:07:02]} 28. Rc1 {[%emt 0:01:21]} Bd3 {[%emt 0:00:22]} (28... Bf5 $142) 29. Rb5 $36 {[%emt 0:01:38][%mdl 2048] White is really pushing.} Ke6 {[%emt 0:07:21]} 30. Rd1 {[%emt 0:01:32]} (30. Bxc5 Rcb8) 30... e4 {[%emt 0:01:55]} 31. fxe4 {[%emt 0:00:16]} Bxe4 {[%emt 0:00:08]} 32. Bxc5 {[%emt 0:00:51]} a4 {[%emt 0:01:35]} (32... Ra6 $16 33. Rd4 f5) 33. Rb6+ $18 {[%emt 0:01:56]} Kf7 {[%emt 0:00:33]} 34. Rd7+ {[%emt 0:02:30]} Kg8 {[%emt 0:00:13] White must now prevent ...axb3.} 35. b4 {[%emt 0:00:29][%cal Bb3b4,Bb4b5][%mdl 32]} f5 {[%emt 0:01:47]} 36. Kf2 {[%emt 0:01:15]} Rd8 {[%emt 0:01:06]} 37. Rbd6 {[%emt 0:01:58]} Rxd7 {[%emt 0:01:13]} 38. Rxd7 {[%emt 0:00:02][%mdl 4096] Endgame KRB-KRB. White is a pawn up.} Bb1 {[%emt 0:00:44]} (38... Rc8 $142 39. a3 Bc2) 39. b5 {[%emt 0:01:42]} Rc8 {[%emt 0:01:33]} 40. Bd6 {[%emt 0:14:28]} (40. Rd5 Bxa2 41. b6 Bxc4 $11) 40... Rxc4 {[%emt 0:00:42]} 41. b6 {[%emt 0:00:05]} Be4 {[%emt 0:01:09]} 42. b7 {[%emt 0:00:14]} Rc2+ {[%emt 0:00:16]} 43. Ke3 {[%emt 0:00:09]} Bxb7 {[%emt 0:00:30]} 44. Rxb7 {[%emt 0:00:03]} Rxg2 $2 {[%emt 0:00:56] KRB-KR} (44... a3 45. Kf3 (45. Bxa3 Rc3+ 46. Kf4 Rxa3 $11) (45. Rb8+ Kf7 $18) 45... Rxa2) 45. Kf4 {[%emt 0:01:25]} Rxh2 {[%emt 0:00:34]} 46. a3 {[%emt 0:01:25]} Rd2 $2 {[%emt 0:00:26]} (46... Re2 47. Kg5 Re6) 47. Bb4 $2 {[%emt 0:00:16]} (47. Ke5 {Hoping for Ke6.} Re2+ 48. Kf6) 47... Rc2 {[%emt 0:00:25]} (47... Rd5 {keeps fighting.} 48. Kg5 f4+ 49. Kxf4 Rf5+ 50. Ke3 h5) 48. Kg5 {[%emt 0:00:13]} Rc4 $2 {[%emt 0:00:26]} (48... f4 49. Kxf4 Rg2) 49. Ra7 {[%emt 0:02:10][%cal Ob4d6]} Rc2 {[%emt 0:00:40]} 50. Rxa4 $2 {[%emt 0:00:24]} (50. Bd6 $18 {is more deadly.}) 50... Kf7 $16 {[%emt 0:00:12]} 51. Ra7+ {[%emt 0:00:14]} Ke6 {[%emt 0:00:29]} 52. Rxh7 {[%emt 0:00:58]} Rg2+ {[%emt 0:00:32]} 53. Kf4 $1 {[%emt 0:00:04]} g5+ {[%emt 0:00:20]} 54. Kf3 {[%emt 0:00:05]} Rb2 {[%emt 0:00:33]} 55. Rg7 {[%emt 0:01:28]} Rb3+ {[%emt 0:00:31]} 56. Ke2 {[%emt 0:00:25]} g4 {[%emt 0:00:36]} 57. Rg8 {[%emt 0:02:10]} g3 {[%emt 0:00:39]} 58. Re8+ {[%emt 0:00:36]} Kd5 {[%emt 0:00:30]} 59. Rd8+ {[%emt 0:00:32]} Ke4 {[%emt 0:00:04]} 60. Re8+ {[%emt 0:00:11]} Kd5 $1 {[%emt 0:00:03]} 61. Rf8 {[%emt 0:00:47]} Ke4 {[%emt 0:00:10]} 62. Bd2 $1 {[%emt 0:00:33] Prevents f4} Rxa3 {[%emt 0:00:32]} 63. Re8+ {[%emt 0:00:07]} Kd5 {[%emt 0:00:24]} 64. Be3 {[%emt 0:00:31]} Ra4 {[%emt 0:01:05]} 65. Kf3 {[%emt 0:00:50]} Rg4 {[%emt 0:01:10]} 66. Rd8+ {[%emt 0:00:13]} Ke5 {[%emt 0:00:27]} 67. Rd1 {[%emt 0:00:36]} g2 {[%emt 0:00:45]} 68. Bf2 {[%emt 0:00:30]} (68. Rg1 Rh4 69. Bg5 Rg4 70. Bc1) 68... Ra4 {[%emt 0:00:27]} 69. Kxg2 {[%emt 0:00:16]} (69. Re1+ {is more complex.} Re4 70. Bg3+ Ke6 71. Rg1) 69... Rg4+ {[%emt 0:00:26]} 70. Kf1 {[%emt 0:00:10]} Re4 {[%emt 0:00:20]} 71. Ra1 {[%emt 0:00:32]} Kf4 {[%emt 0:00:05]} 72. Kg2 {[%emt 0:00:10]} Kg4 {[%emt 0:00:29]} 73. Ra8 {[%emt 0:00:12]} Kg5 {[%emt 0:00:23]} 74. Rg8+ {[%emt 0:00:12]} Kf6 {[%emt 0:00:13]} 75. Kf3 {[%emt 0:00:10] Repels Rg4} Ra4 {[%emt 0:00:18]} 76. Be3 {[%emt 0:00:38]} Kf7 {[%emt 0:00:27]} 77. Rb8 {[%emt 0:00:07]} Ke6 {[%emt 0:00:26]} 78. Rb5 {[%emt 0:02:26]} Rc4 {[%emt 0:00:20]} 79. Ke2 {[%emt 0:00:51]} Ra4 {[%emt 0:00:31]} 80. Bd2 {[%emt 0:00:14]} Ra3 {[%emt 0:00:44]} 81. Bc1 {[%emt 0:00:25]} Ra4 {[%emt 0:01:42]} 82. Bb2 {[%emt 0:00:25]} Re4+ {[%emt 0:00:34]} 83. Kf3 {[%emt 0:00:05]} Ra4 {[%emt 0:00:21]} 84. Re5+ {[%emt 0:00:18]} Kd7 {[%emt 0:00:19]} 85. Rxf5 {[%emt 0:00:06]} Ke8 {[%emt 0:00:11]} 86. Ke3 {[%emt 0:00:36]} Rb4 {[%emt 0:00:52]} 87. Bd4 {[%emt 0:00:07]} Rb1 {[%emt 0:00:15]} 88. Ke4 {[%emt 0:00:09]} Re1+ {[%emt 0:00:27]} 89. Kd5 {[%emt 0:00:04]} Rd1 {[%emt 0:00:46]} 90. Ke5 {[%emt 0:01:42]} Re1+ {[%emt 0:00:31]} 91. Kd6 {[%emt 0:00:26]} Rd1 {[%emt 0:00:16]} 92. Rf4 {[%emt 0:00:59]} Rd2 {[%emt 0:00:18]} 93. Ke6 {[%emt 0:00:28]} Kd8 $2 {[%emt 0:01:07][%mdl 8192]} (93... Re2+ $16 94. Be5 Rd2) 94. Be5 {[%emt 0:00:19][%cal Rf4f8]} Kc8 {[%emt 0:00:42]} 95. Rf7 $2 {[%emt 0:00:44]} (95. Rb4 $1 Rb2 96. Rxb2 Kd8 97. Rb8#) 95... Rd1 $2 {[%emt 0:00:25][%mdl 8192] [#]} (95... Rd7 $16) 96. Rc7+ $1 {[%emt 0:00:38]} Kd8 {[%emt 0:00:05]} 97. Ra7 $2 {[%emt 0:00:48]} (97. Rc4 Ke8 98. Rh4 Rf1 99. Rb4 Rd1 100. Rh4) 97... Kc8 {[%emt 0:00:29]} 98. Bd6 {[%emt 0:00:36]} Re1+ {[%emt 0:00:53]} 99. Kd5 {[%emt 0:00:05]} Rc1 $2 {[%emt 0:00:36][%mdl 8192] [#]} (99... Kd8 $16) 100. Bf4 $2 {[%emt 0:00:47]} (100. Bc5 $1 Rb1 101. Kc6 Rb2 102. Rh7 Rd2 103. Rg7 Rd1 104. Ra7 Kb8 105. Ra4) 100... Rc2 {[%emt 0:00:24]} 101. Rh7 {[%emt 0:00:27]} Ra2 {[%emt 0:00:37]} 102. Be3 {[%emt 0:00:47]} Ra6 {[%emt 0:00:28]} 103. Bc5 {[%emt 0:00:14]} Rg6 {[%emt 0:00:34]} 104. Bd6 {[%emt 0:00:36] Kc6 would kill now.} Rg1 $2 {[%emt 0:00:18][%mdl 8192]} (104... Kd8 $16) 105. Ra7 $2 {[%emt 0:00:43]} (105. Kc6 Rc1+ 106. Bc5 Rd1 107. Ra7 Rb1 108. Ba3 Rb3 109. Bd6 Rc3+ 110. Bc5) 105... Kd8 $2 {[%emt 0:00:36][%mdl 8192]} (105... Rc1 $11) 106. Be5 $2 {[%emt 0:00:29]} (106. Kc6 Ke8 107. Re7+ Kd8 108. Re6 Rg8 109. Bc5 Kc8 110. Bd4 Kb8 111. Rh6 Rc8+ 112. Kb6) 106... Rd1+ {[%emt 0:00:33]} 107. Ke6 {[%emt 0:00:13][%cal Ra7a8]} Kc8 {[%emt 0:00:14]} 108. Rc7+ {[%emt 0:00:50]} Kd8 $1 {[%emt 0:00:01]} 109. Rf7 $2 {[%emt 0:00:24]} (109. Rc4 {mates} Ke8 110. Re4 Rd7 111. Rg4 Re7+ 112. Kd6 Rh7 113. Ke6 Re7+) 109... Kc8 $1 {[%emt 0:00:33]} 110. Rf8+ {[%emt 0:00:13]} Kb7 {[%emt 0:00:08]} 111. Rb8+ {[%emt 0:00:14]} Kc6 {[%emt 0:00:07][%cal Od1d6]} 112. Rc8+ {[%emt 0:00:08]} Kb5 {[%emt 0:00:12]} 113. Kf5 {[%emt 0:00:21]} (113. Bd6 $14) 113... Re1 {[%emt 0:00:22] The position is equal.} 114. Ke6 {[%emt 0:01:23]} Rd1 {[%emt 0:00:08]} 115. Rc2 {[%emt 0:00:21]} Rd3 {[%emt 0:00:26]} 116. Kf5 {[%emt 0:00:34]} Rd1 {[%emt 0:00:36]} 117. Ke4 {[%emt 0:00:07]} Rd7 {[%emt 0:00:24]} 118. Bd4 {[%emt 0:00:11]} Rh7 {[%emt 0:00:05]} 119. Rc8 {[%emt 0:00:22]} Rh4+ {[%emt 0:00:19]} 120. Kd5 {[%emt 0:00:09]} Rh5+ {[%emt 0:00:30]} 121. Be5 {[%emt 0:00:04]} Rg5 {[%emt 0:00:18]} 122. Rb8+ {[%emt 0:00:07]} Ka5 {[%emt 0:00:52]} 123. Kd4 {[%emt 0:01:11]} Ka6 {[%emt 0:00:06]} 124. Rb1 {[%emt 0:00:20]} Rh5 {[%emt 0:00:22]} 125. Bd6 {[%emt 0:01:13]} Rb5 {[%emt 0:00:27]} 126. Rg1 {[%emt 0:00:27]} Rh5 {[%emt 0:00:42]} 127. Bc5 {[%emt 0:00:33] Weighted Error Value: White=0.31/Black=0.31  Loses game:     	---       	Black=4      Missed win:     	White=4     	---        Mistake:       	White=3     	Black=9      Inaccurate:     	White=4     	Black=2      OK:         	White=47    	Black=43     Best:        	White=5     	Black=12     Strong:       	White=2     	Black=3} 1/2-1/2

[Event "8th Montevideo Open 2025"]
[Site "Montevideo"]
[Date "2025.02.07"]
[Round "7.11"]
[White "Komarov, Leonid"]
[Black "Brizzi, Milagros Tatiana"]
[Result "1-0"]
[Annotator "TA"]
[ECO "B41"]
[WhiteElo "1956"]
[BlackElo "2150"]
[PlyCount "67"]
[EventDate "2025.02.01"]
[EventType "swiss"]
[EventCountry "URU"]
[SourceTitle "playchess.com"]
[Source "ChessBase"]
[SourceQuality "1"]
[TimeControl "5400+30"]

{[%evp 12,67,62,49,67,68,64,64,54,47,51,47,58,40,55,39,33,21,43,26,65,54,54,61,182,175,255,267,263,251,250,243,415,272,383,344,591,570,697,612,804,777,965,985,997,946,844,753,1440,1350,4290,3909,29994,29995,29995,29996,29996,29997]} 1. e4 {[%emt 0:00:16]} c5 {[%emt 0:01:50]} 2. Nf3 {[%emt 0:00:44]} e6 {[%emt 0:00:14]} 3. d4 {[%emt 0:00:09]} cxd4 {[%emt 0:00:09]} 4. Nxd4 {[%emt 0:00:02]} a6 {[%emt 0:00:10]} 5. c4 {[%emt 0:00:28]} Nf6 {[%emt 0:00:15]} 6. Nc3 {[%emt 0:00:07]} d6 {[%emt 0:00:58]} 7. Be2 {[%emt 0:01:45] White is more active.} Nbd7 {[%emt 0:01:41] B41: Sicilian: Kan Variation: 5 c4.} 8. Be3 {[%emt 0:00:47]} Qc7 {[%emt 0:00:32]} 9. O-O {[%emt 0:04:42]} b6 {[%emt 0:00:34] White is slightly better.} 10. f4 {[%emt 0:06:21]} Bb7 {[%emt 0:03:37]} 11. Qc2 {[%emt 0:03:50]} Be7 {[%emt 0:01:32]} 12. b3 {[%emt 0:01:03]} Rc8 {[%emt 0:01:28][%cal Ob6b5]} 13. a4 {[%emt 0:00:28]} O-O {[%emt 0:05:43]} 14. Bf3 {[%emt 0:04:39]} Rfe8 $146 {[%emt 0:08:09]} (14... Nc5 15. Rad1 Rfe8 16. Nde2 Bf8 17. Ng3 Qb8 18. Bd4 Be7 19. e5 dxe5 20. Bxe5 Qa8 21. Bxb7 Qxb7 22. Bd4 Red8 {½-½ Klapp,H (2123)-Kraus,G (2152) GER-ch34 V10 email 2002}) 15. g4 {[%emt 0:10:03][%cal Bg2g4,Bg4g5][%mdl 32]} e5 {[%emt 0:09:06]} 16. Nf5 {[%emt 0:03:13] [#]} exf4 {[%emt 0:00:27]} 17. Bxf4 {[%emt 0:00:15]} Nc5 {[%emt 0:07:16][%csl Od6] White attacks a weakness Loses the game.} ({Better is} 17... Ne5 $14) 18. Rad1 $36 {[%emt 0:08:09][%cal Og4g5][%mdl 2048] Keeping Black busy.} Red8 {[%emt 0:13:05]} (18... h6 $142 19. Bxd6 (19. Nxd6 Ne6 $16) 19... Bxd6 20. Nxd6 Re6) 19. g5 {[%emt 0:07:28]} Ne8 {[%emt 0:00:57]} 20. Nd5 {[%emt 0:00:43]} Bxd5 {[%emt 0:00:17]} 21. exd5 {[%emt 0:01:24]} Nb7 $2 {[%emt 0:08:14] [#] Black is weak on the light squares} (21... Bf8 22. Nd4 g6) 22. Nd4 {[%emt 0:03:54] Strongly threatening Be3.} Na5 {[%emt 0:00:07]} (22... g6 $142 23. Nc6 Ng7) 23. Nc6 {[%emt 0:02:33]} Nxc6 $2 {[%emt 0:01:35]} (23... g6 {might work better.} 24. Nxd8 Rxd8) 24. dxc6 {[%emt 0:00:02]} Qa7 {[%emt 0:00:26]} 25. Qf2 {[%emt 0:00:39]} a5 {[%emt 0:11:57]} 26. Be3 {[%emt 0:00:33]} Nc7 {[%emt 0:02:36]} 27. Bg4 {[%emt 0:00:15] A strong pair of Bishops.} f6 {[%emt 0:01:10]} 28. Bxc8 {[%emt 0:04:24]} Rxc8 {[%emt 0:00:01]} 29. Qf5 {[%emt 0:01:54]} Rd8 {[%emt 0:01:10]} 30. Bd4 {[%emt 0:00:52]} d5 {[%emt 0:00:57]} 31. gxf6 {[%emt 0:01:05]} Bc5 {[%emt 0:04:05]} 32. fxg7 {[%emt 0:00:59][%csl Gf1][%cal Rf5f7] White mates.} Bxd4+ {[%emt 0:02:31]} 33. Rxd4 {[%emt 0:00:08][%csl Gf1][%cal Rf5f7]} Ne6 {[%emt 0:00:12]} 34. Qxe6+ {[%emt 0:00:10] Weighted Error Value: White=0.19 (very precise) /Black=1.35  Mistake:       	---       	Black=5      Inaccurate:     	White=1     	Black=2      OK:         	White=6     	Black=6      Best:        	White=1     	Black=2} 1-0